bitfinex-derivatives/quotes_SOLF0:USTF0_20250703
["timestamp","ask_amount","ask_price","bid_price","bid_amount"]
[1751502204974,0.04375224,152.02,151.97,47.32]
[1751502205477,6.5761,152.0,151.97,47.32]
[1751502206579,0.04375224,152.02,151.97,53.8973]
[1751502207173,0.04375224,152.02,151.97,6.5773]
[1751502207475,0.04375224,152.02,151.96,6.5777]
[1751502207676,0.04375224,152.02,151.95,6.1310263]
[1751502208071,6.5767,151.99,151.95,6.1310263]
[1751502208570,6.5761,152.0,151.95,6.1310263]
[1751502209080,6.5761,152.0,151.96,6.5776]
[1751502209279,0.04332288,151.99,151.96,6.5776]
[1751502209680,6.61982288,151.99,151.96,6.5776]
[1751502210180,0.04332288,151.99,151.95,6.1310263]
[1751502210776,0.04332288,151.99,151.96,6.5775]
[1751502211473,6.61982288,151.99,151.96,6.5775]
[1751502211782,0.04332288,151.99,151.95,6.1310263]
[1751502212381,0.04332288,151.99,151.96,6.5775]
[1751502212683,6.61982288,151.99,151.95,6.1310263]
[1751502213083,0.04332288,151.99,151.96,6.5774]
[1751502213279,0.04332288,151.99,151.95,6.1310263]
[1751502213680,0.04332288,151.99,151.98,6.5769]
[1751502213883,0.04332288,151.99,151.98,12.7079263]
[1751502216986,6.53022288,152.01,152.0,6.576]
[1751502217383,47.3,152.1,151.98,47.3]
[1751502217986,6.5738,152.06,152.02,6.5751]
[1751502218678,6.5738,152.06,152.02,6.6176036]
[1751502218886,6.574,152.05,152.02,0.0425036]
[1751502219387,6.574,152.05,152.02,6.6177036]
[1751502219991,6.5737,152.06,152.02,6.6177036]
[1751502220185,6.5737,152.06,152.03,6.5747]
[1751502220386,6.5737,152.06,152.02,0.0425036]
[1751502220789,6.5737,152.06,152.02,6.6174036]
[1751502221387,6.5737,152.06,152.03,6.5747]
[1751502221684,6.5737,152.06,152.02,0.0425036]
[1751502221986,6.5737,152.06,152.02,6.6174036]
[1751502222188,6.5737,152.06,152.02,0.0425036]
[1751502222689,6.5737,152.06,152.02,6.6176036]
[1751502223588,47.3,152.1,152.02,6.6176036]
[1751502223980,6.5737,152.06,152.02,6.6176036]
[1751502225090,6.5737,152.06,152.03,6.5746]
[1751502225590,47.3,152.1,152.02,0.0425036]
[1751502226392,47.3,152.1,152.04,6.574]
[1751502226891,6.5728,152.08,152.04,6.574]
[1751502227792,6.5728,152.08,152.05,6.5738]
[1751502228792,47.3,152.1,152.02,6.1735299]
[1751502228993,6.7512,152.13,152.05,6.1310263]
[1751502229191,6.5717,152.11,152.07,6.5727]
[1751502229392,6.5717,152.11,152.05,6.1310263]
[1751502229794,13.3218,152.13,152.07,0.04760377]
[1751502229991,11.0841,152.13,152.07,0.04760377]
[1751502230389,2.2321,152.13,152.07,0.04760377]
[1751502230590,2.2986,152.17,152.08,47.28]
[1751502230798,2.18,152.2,152.1,6.1310263]
[1751502231090,2.18,152.2,152.11,6.1310263]
[1751502231292,47.28,152.26,152.14,6.1310263]
[1751502231498,2.361,152.25,152.15,47.28]
[1751502231994,2.361,152.25,152.17,6.5684]
[1751502231995,6.5665,152.22,152.17,6.5684]
[1751502232197,6.5665,152.22,152.15,47.28]
[1751502232498,6.5665,152.22,152.18,0.04491323]
[1751502233190,6.5671,152.21,152.18,0.04491323]
[1751502237194,6.5668,152.22,152.18,0.04491323]
[1751502237391,6.5668,152.22,152.18,6.61301323]
[1751502237791,2.361,152.25,152.18,6.61301323]
[1751502237792,6.5658,152.24,152.2,6.5674]
[1751502237995,2.361,152.25,152.18,0.04491323]
[1751502238692,6.566,152.24,152.19,6.5677]
[1751502239093,2.361,152.25,152.19,6.5677]
[1751502240698,2.361,152.25,152.18,0.04491323]
[1751502241396,6.5668,152.22,152.18,0.04491323]
[1751502241699,2.361,152.25,152.12,47.28]
[1751502241895,195.8,152.24,152.12,47.28]
[1751502242302,195.8,152.24,152.08,47.28]
[1751502242494,6.571,152.12,152.08,47.28]
[1751502242697,47.28,152.18,152.08,47.28]
[1751502242902,6.5698,152.15,152.11,6.571]
[1751502243492,6.57,152.14,152.1,6.5716]
[1751502244002,6.5707,152.13,152.09,6.5721]
[1751502244403,0.04541598,152.14,152.09,6.5721]
[1751502244599,6.5715,152.11,152.08,47.28]
[1751502245502,6.5715,152.11,152.07,6.5729]
[1751502245803,6.5715,152.11,152.05,47.28]
[1751502245804,6.5709,152.12,152.08,6.5725]
[1751502246103,0.04541598,152.14,152.05,47.28]
[1751502246305,4.4555,152.17,152.05,47.28]
[1751502246505,6.5708,152.12,152.08,6.5722]
[1751502246803,4.4555,152.17,152.08,6.5722]
[1751502247001,6.61560713,152.12,152.08,6.5722]
[1751502250200,0.04440713,152.12,152.09,6.5721]
[1751502250399,0.04440713,152.12,152.04,4.4229]
[1751502250700,6.5659,152.24,152.05,47.3]
[1751502250900,6.7707,152.27,152.05,53.4310263]
[1751502251104,6.7707,152.27,152.11,6.1310263]
[1751502251301,6.7707,152.27,152.12,815.2535]
[1751502251501,4.5381,152.27,152.12,815.2535]
[1751502251702,4.5381,152.27,152.12,821.3845263]
[1751502251898,4.5381,152.27,152.22,6.5665]
[1751502252208,4.5381,152.27,152.21,47.3]
[1751502252402,4.5381,152.27,152.21,6.5668]
[1751502252403,6.5656,152.25,152.21,6.5668]
[1751502252608,6.5656,152.25,152.2,47.3]
[1751502252802,4.5381,152.27,152.2,47.3]
[1751502253008,6.5653,152.25,152.21,0.04484325]
[1751502253308,4.5381,152.27,152.21,0.04484325]
[1751502253707,2.329,152.26,152.21,0.04484325]
[1751502254006,6.5665,152.22,152.21,0.04484325]
[1751502255609,6.5662,152.23,152.21,0.04484325]
[1751502256008,2.329,152.26,152.21,0.04484325]
[1751502257607,6.5665,152.22,152.21,0.04484325]
[1751502259503,6.5662,152.23,152.21,0.04484325]
[1751502259709,2.329,152.26,152.21,0.04484325]
[1751502260008,2.329,152.26,152.21,6.61174325]
[1751502260211,2.329,152.26,152.21,0.04484325]
[1751502260404,8.8939,152.26,152.22,6.5665]
[1751502260807,2.329,152.26,152.21,0.04484325]
[1751502261307,6.5657,152.24,152.21,0.04484325]
[1751502261509,2.329,152.26,152.21,0.04484325]
[1751502262409,6.5665,152.22,152.21,0.04484325]
[1751502262609,49.589,152.26,152.17,47.28]
[1751502262812,0.04538499,152.25,152.17,47.28]
[1751502263005,6.5669,152.22,152.18,6.568]
[1751502263209,0.04538499,152.25,152.17,47.28]
[1751502263401,49.589,152.26,152.17,47.28]
[1751502263601,6.567,152.21,152.18,6.568]
[1751502263805,49.589,152.26,152.17,47.28]
[1751502264309,0.0420493,152.23,152.17,47.28]
[1751502265609,6.5666,152.22,152.19,6.5678]
[1751502265812,0.0420493,152.23,152.19,6.5678]
[1751502266308,6.567,152.21,152.18,6.5681]
[1751502267812,6.5676,152.2,152.17,47.28]
[1751502268114,0.0420493,152.23,152.17,47.28]
[1751502268408,6.5682,152.18,152.12,567.78]
[1751502268610,0.0420493,152.23,152.13,47.52]
[1751502268916,6.5687,152.17,152.14,6.5697]
[1751502270116,20.8683,152.18,152.15,6.5695]
[1751502270418,14.3,152.18,152.13,47.52]
[1751502271215,14.3,152.18,152.14,6.07245086]
[1751502271510,14.3,152.18,152.17,6.5687]
[1751502273617,14.3,152.18,152.17,12.64115086]
[1751502274516,14.3,152.18,152.17,6.5687]
[1751502275318,0.04242288,152.2,152.19,6.5678]
[1751502276519,0.04242288,152.2,152.18,54.0881]
[1751502277019,0.04242288,152.2,152.18,47.52]
[1751502278722,6.60992288,152.2,152.18,47.52]
[1751502278923,0.04242288,152.2,152.14,6.11845791]
[1751502279128,6.5681,152.19,152.14,53.63845791]
[1751502280428,6.5681,152.19,152.15,6.5692]
[1751502281029,6.5683,152.18,152.15,6.5692]
[1751502281830,6.568,152.19,152.16,6.569]
[1751502282128,6.568,152.19,152.14,53.63845791]
[1751502282527,6.568,152.19,152.15,6.5692]
[1751502282728,6.60982288,152.2,152.14,53.63845791]
[1751502282928,6.60982288,152.2,152.16,6.5689]
[1751502285033,6.5678,152.19,152.15,6.5694]
[1751502285223,0.04242288,152.2,152.15,6.5694]
[1751502285627,6.5679,152.19,152.16,6.569]
[1751502286125,6.61002288,152.2,152.16,6.569]
[1751502286325,6.61002288,152.2,152.15,6.5695]
[1751502286326,0.04242288,152.2,152.15,6.5695]
[1751502286526,0.04242288,152.2,152.12,615.3]
[1751502286726,6.5685,152.18,152.12,615.3]
[1751502287628,0.04242288,152.2,152.12,615.3]
[1751502287825,0.04242288,152.2,152.12,47.52]
[1751502288226,6.5697,152.15,152.12,54.0906]
[1751502288430,6.7237,152.19,152.12,47.52]
[1751502288837,6.5684,152.18,152.15,6.5693]
[1751502289034,4.5013,152.19,152.12,47.52]
[1751502289241,11.0693,152.19,152.16,6.5689]
[1751502289636,2.2923,152.19,152.13,6.11845791]
[1751502289939,6.5677,152.2,152.16,6.5688]
[1751502290233,0.04371405,152.18,152.16,6.5688]
[1751502292237,0.04371405,152.18,152.17,6.5687]
[1751502292437,0.04371405,152.18,152.14,6.11845791]
[1751502292838,0.04371405,152.18,152.16,6.5689]
[1751502293039,0.04371405,152.18,152.14,6.11845791]
[1751502293539,0.04371405,152.18,152.15,6.5693]
[1751502294338,0.04371405,152.18,152.16,6.569]
[1751502296245,0.04371405,152.18,152.17,6.5687]
[1751502296544,0.04371405,152.18,152.17,54.0887]
[1751502302945,0.04371405,152.18,152.17,62.26097209]
[1751502303648,0.04371405,152.18,152.17,54.0887]
[1751502303847,0.04371405,152.18,152.17,47.52]
[1751502304047,0.04371405,152.18,152.17,53.65336802]
[1751502304248,0.04371405,152.18,152.17,47.52]
[1751502304447,0.04371405,152.18,152.17,53.65414027]
[1751502304748,0.04371405,152.18,152.13,2.56114027]
[1751502304948,0.04371405,152.18,152.11,47.52]
[1751502306147,0.04371405,152.18,152.12,196.3]
[1751502306548,6.5688,152.17,152.14,6.5699]
[1751502307148,6.5688,152.17,152.13,6.5701]
[1751502308343,0.04371405,152.18,152.11,243.66]
[1751502308746,6.5695,152.16,152.12,6.5706]
[1751502309140,0.04371405,152.18,152.11,47.52]
[1751502309345,2.1792,152.17,152.11,54.091]
[1751502309548,2.1792,152.17,152.11,47.52]
[1751502309849,8.7483,152.17,152.13,6.5701]
[1751502310254,2.1792,152.17,152.13,6.5701]
[1751502310550,6.5696,152.15,152.12,6.5707]
[1751502310753,2.1792,152.17,152.11,47.52]
[1751502311451,6.5694,152.16,152.11,47.52]
[1751502312557,6.5694,152.16,152.12,6.5705]
[1751502313055,2.1792,152.17,152.11,47.52]
[1751502314157,2.1792,152.17,152.13,6.5702]
[1751502314450,0.04371405,152.18,152.11,47.52]
[1751502314651,6.61231405,152.18,152.13,6.57]
[1751502314859,6.61231405,152.18,152.11,47.52]
[1751502315250,6.61231405,152.18,152.14,6.5697]
[1751502316557,0.04371405,152.18,152.14,6.5697]
[1751502317359,6.61231405,152.18,152.14,6.5697]
[1751502319964,0.04371405,152.18,152.15,6.5695]
[1751502320861,0.04371405,152.18,152.16,6.5691]
[1751502321063,0.04371405,152.18,152.11,55.69227209]
[1751502321260,0.04371405,152.18,152.13,8.17227209]
[1751502321457,0.04371405,152.18,152.12,8.17227209]
[1751502321663,0.04371405,152.18,152.13,8.17227209]
[1751502322161,0.04371405,152.18,152.17,6.5687]
[1751502322365,4.5048,152.26,152.17,47.52]
[1751502322660,4.5048,152.26,152.19,6.5676]
[1751502323055,4.5048,152.26,152.17,47.52]
[1751502323564,10.62867541,152.26,152.13,47.52]
[1751502323766,6.5685,152.18,152.14,6.5696]
[1751502324357,6.5688,152.17,152.13,54.0901]
[1751502324761,6.5688,152.17,152.13,47.56681943]
[1751502325567,6.5688,152.17,152.13,54.13701943]
[1751502327970,2.2134,152.22,152.13,47.56681943]
[1751502328357,8.34028684,152.22,152.13,47.56681943]
[1751502328561,6.57,152.14,152.13,47.56681943]
[1751502328766,6.57,152.14,152.13,0.04681943]
[1751502329963,6.5715,152.11,152.09,47.06]
[1751502332367,6.61496917,152.12,152.09,53.632]
[1751502333872,0.04406917,152.12,152.1,6.5717]
[1751502334165,0.04406917,152.12,152.09,47.06]
[1751502334572,0.04406917,152.12,152.1,6.5713]
[1751502334971,0.04406917,152.12,152.09,47.06]
[1751502335268,6.61506917,152.12,152.09,47.06]
[1751502337266,0.04406917,152.12,152.09,47.06]
[1751502337871,6.5717,152.1,152.09,47.06]
[1751502338476,6.5717,152.1,152.07,6.5727]
[1751502338966,0.04406917,152.12,152.05,614.58]
[1751502338967,6.5722,152.09,152.06,6.5732]
[1751502339168,0.04406917,152.12,152.05,614.58]
[1751502339372,6.5718,152.1,152.07,6.5727]
[1751502339566,0.04406917,152.12,152.05,614.58]
[1751502340269,6.5718,152.1,152.07,6.5727]
[1751502341472,0.04406917,152.12,152.05,614.58]
[1751502342073,6.5714,152.11,152.07,6.5729]
[1751502342470,0.04406917,152.12,152.05,614.58]
[1751502342669,6.61506917,152.12,152.08,6.5722]
[1751502343070,6.5713,152.11,152.08,6.5722]
[1751502343274,6.5713,152.11,152.07,6.5728]
[1751502343975,6.5718,152.1,152.06,6.5731]
[1751502344173,6.5718,152.1,152.05,809.94]
[1751502345677,6.5718,152.1,152.07,6.573]
[1751502345877,6.5715,152.11,152.05,809.94]
[1751502346176,6.5715,152.11,152.07,6.5728]
[1751502346874,6.5718,152.1,152.07,6.5728]
[1751502347775,0.04406917,152.12,152.06,6.5733]
[1751502348676,0.04406917,152.12,152.07,6.5729]
[1751502349077,6.572,152.1,152.07,6.5729]
[1751502349373,0.04406917,152.12,152.03,47.08]
[1751502349679,2.207,152.11,152.03,47.08]
[1751502349878,2.2879,152.1,152.03,47.08]
[1751502350077,6.5731,152.07,152.04,6.5741]
[1751502350677,6.5731,152.07,152.03,47.08]
[1751502350678,6.5728,152.08,152.05,6.5738]
[1751502351373,6.5733,152.07,152.04,6.5739]
[1751502351877,6.5733,152.07,152.03,47.08]
[1751502352270,6.5733,152.07,152.04,6.5742]
[1751502355980,0.04394126,152.09,152.03,47.08]
[1751502357082,6.61624126,152.09,152.03,47.08]
[1751502357877,6.61624126,152.09,152.05,6.5735]
[1751502358283,6.61624126,152.09,152.03,47.08]
[1751502358883,6.61624126,152.09,152.05,6.5736]
[1751502359285,6.5726,152.08,152.05,6.5736]
[1751502359785,6.61614126,152.09,152.05,6.5736]
[1751502360789,6.61614126,152.09,152.06,6.5733]
[1751502361087,0.04394126,152.09,152.03,47.08]
[1751502361386,0.04394126,152.09,152.06,6.5734]
[1751502362489,6.61634126,152.09,152.06,6.5734]
[1751502363088,0.04394126,152.09,152.06,6.5734]
[1751502363289,0.04394126,152.09,152.07,6.5728]
[1751502364291,0.04394126,152.09,152.06,6.5732]
[1751502365196,6.61634126,152.09,152.06,6.5732]
[1751502365697,6.61634126,152.09,152.04,6.11732298]
[1751502366490,6.61634126,152.09,152.05,6.11732298]
[1751502366692,6.61634126,152.09,152.06,6.573]
[1751502366896,6.61634126,152.09,152.05,6.11732298]
[1751502367098,6.61634126,152.09,152.06,6.5734]
[1751502367697,0.04394126,152.09,152.06,6.5734]
[1751502368301,0.04394126,152.09,152.06,12.69072298]
[1751502368999,6.61624126,152.09,152.06,12.69072298]
[1751502369199,6.61624126,152.09,152.06,6.11732298]
[1751502370795,6.61624126,152.09,152.06,12.69072298]
[1751502370996,0.04394126,152.09,152.06,6.11732298]
[1751502371201,0.04394126,152.09,152.08,6.11732298]
[1751502371396,8.8705,152.15,152.08,53.03732298]
[1751502371602,6.5697,152.15,152.09,6.11732298]
[1751502371899,8.8616,152.16,152.1,6.11732298]
[1751502372101,6.5694,152.16,152.1,6.11732298]
[1751502372797,6.5697,152.15,152.11,6.11732298]
[1751502373200,6.5697,152.15,152.11,12.68832298]
[1751502373807,6.5693,152.16,152.12,6.5708]
[1751502374697,6.5693,152.16,152.12,12.68812298]
[1751502375404,6.5693,152.16,152.13,6.5704]
[1751502375797,2.3125,152.18,152.12,6.11732298]
[1751502376002,2.3738,152.19,152.15,6.5692]
[1751502376305,2.3738,152.19,152.14,6.11732298]
[1751502376804,2.2179,152.22,152.15,6.15941341]
[1751502377303,2.2179,152.22,152.16,6.5688]
[1751502377501,2.2179,152.22,152.15,6.15941341]
[1751502378808,6.5672,152.21,152.17,6.5684]
[1751502379306,8.7846,152.22,152.18,6.5681]
[1751502379501,2.2179,152.22,152.18,6.5681]
[1751502380104,2.2179,152.22,152.18,6.60997519]
[1751502380307,8.7846,152.22,152.18,6.60997519]
[1751502381511,6.5671,152.21,152.18,0.04187519]
[1751502381702,2.3076,152.23,152.18,0.04187519]
[1751502382008,2.2547,152.25,152.18,0.04187519]
[1751502382609,2.2547,152.25,152.18,46.94187519]
[1751502383509,6.5668,152.22,152.18,53.50997519]
[1751502383711,2.2547,152.25,152.18,53.50997519]
[1751502383908,2.2547,152.25,152.18,46.94187519]
[1751502384213,6.5671,152.21,152.18,46.94187519]
[1751502384908,2.2547,152.25,152.18,53.50977519]
[1751502385115,6.5667,152.22,152.18,46.94187519]
[1751502385506,6.5658,152.24,152.2,6.5671]
[1751502385709,6.5658,152.24,152.18,46.94187519]
[1751502385908,2.2547,152.25,152.18,46.94187519]
[1751502386117,2.218,152.28,152.18,53.05919817]
[1751502386315,2.218,152.28,152.19,6.11732298]
[1751502386515,6.5651,152.26,152.21,6.5666]
[1751502386712,6.5651,152.26,152.18,53.01732298]
[1751502386919,2.218,152.28,152.19,6.11732298]
[1751502387113,6.5648,152.26,152.22,6.5662]
[1751502388211,6.5653,152.25,152.21,6.5668]
[1751502388717,6.5653,152.25,152.22,0.04274256]
[1751502389515,6.565,152.26,152.22,0.04274256]
[1751502390313,6.565,152.26,152.22,6.60914256]
[1751502392221,2.1672,152.29,152.22,0.04274256]
[1751502393719,6.5644,152.27,152.24,6.5656]
[1751502394424,6.5641,152.28,152.25,6.5652]
[1751502394625,6.5641,152.28,152.22,0.04274256]
[1751502395125,6.5641,152.28,152.24,6.5654]
[1751502395625,6.5636,152.29,152.25,6.5651]
[1751502395822,116.72454147,152.3,152.22,0.04274256]
[1751502396123,6.5642,152.28,152.24,6.5655]
[1751502396827,116.72454147,152.3,152.22,0.04274256]
[1751502397025,117.86771773,152.3,152.22,0.04274256]
[1751502397427,6.5652,152.25,152.22,0.04274256]
[1751502397627,117.86771773,152.3,152.22,0.04274256]
[1751502398022,6.5653,152.25,152.22,6.60914256]
[1751502398220,117.86771773,152.3,152.22,0.04274256]
[1751502398428,6.5661,152.23,152.22,0.04274256]
[1751502402431,6.5675,152.2,152.18,46.9]
[1751502404024,6.61489083,152.21,152.18,53.4679]
[1751502404230,0.04779083,152.21,152.18,46.9]
[1751502405134,6.5674,152.2,152.18,46.9]
[1751502405435,0.04779083,152.21,152.12,46.84]
[1751502406332,0.04779083,152.21,152.14,6.57]
[1751502406839,0.04779083,152.21,152.12,46.84]
[1751502407634,6.5703,152.14,152.12,46.84]
[1751502409231,0.04931641,152.15,152.12,46.84]
[1751502410332,0.04931641,152.15,152.13,6.5701]
[1751502414344,0.04931641,152.15,152.12,46.84]
[1751502414740,6.5708,152.12,152.09,6.5719]
[1751502415142,0.04931641,152.15,152.08,46.86]
[1751502418047,0.04841683,152.11,152.04,46.82]
[1751502418547,6.5725,152.09,152.04,46.82]
[1751502419349,6.5725,152.09,152.06,6.5734]
[1751502420047,6.5725,152.09,152.06,6.61767277]
[1751502420249,0.04841683,152.11,152.06,0.04427277]
[1751502421046,0.04841683,152.11,152.06,6.16159575]
[1751502421448,0.04841683,152.11,152.06,0.04427277]
[1751502421847,0.04841683,152.11,152.09,6.5719]
[1751502422249,0.04841683,152.11,152.06,0.04427277]
[1751502422452,0.04841683,152.11,152.1,6.5717]
[1751502422749,0.04841683,152.11,152.06,0.04427277]
[1751502423247,0.04841683,152.11,152.09,6.5719]
[1751502423456,0.04841683,152.11,152.06,6.16159575]
[1751502423751,0.04841683,152.11,152.09,6.5719]
[1751502423952,0.04841683,152.11,152.06,0.04427277]
[1751502424948,6.5719,152.1,152.06,6.61747277]
[1751502427153,6.61981683,152.11,152.07,6.5728]
[1751502427651,6.5718,152.1,152.07,6.5728]
[1751502427856,0.04841683,152.11,152.06,0.04427277]
[1751502428854,6.5721,152.1,152.06,6.61747277]
[1751502429759,6.5722,152.09,152.06,6.61747277]
[1751502429954,6.5722,152.09,152.06,0.04427277]
[1751502430152,0.04841683,152.11,152.06,0.04427277]
[1751502430349,6.5728,152.08,152.06,0.04427277]
[1751502430852,0.04841683,152.11,152.06,0.04427277]
[1751502432059,6.5722,152.09,152.06,0.04427277]
[1751502433256,6.5722,152.09,152.06,6.61767277]
[1751502433557,6.5717,152.1,152.06,6.61767277]
[1751502434357,6.5722,152.09,152.06,6.61767277]
[1751502434960,6.5718,152.1,152.06,6.61767277]
[1751502435258,6.5718,152.1,152.07,6.573]
[1751502435961,6.5718,152.1,152.06,6.61757277]
[1751502436362,6.5723,152.09,152.06,0.04427277]
[1751502439663,6.5726,152.08,152.06,0.04427277]
[1751502440660,6.5723,152.09,152.06,0.04427277]
[1751502440861,0.04841683,152.11,152.06,0.04427277]
[1751502441964,6.5719,152.1,152.06,6.61747277]
[1751502442462,6.5719,152.1,152.06,0.04427277]
[1751502442656,6.5719,152.1,152.07,6.5728]
[1751502443859,6.5719,152.1,152.06,0.04427277]
[1751502443860,6.5719,152.1,152.06,6.61747277]
[1751502444261,6.5719,152.1,152.06,0.04427277]
[1751502444563,6.5722,152.09,152.06,0.04427277]
[1751502445565,6.5722,152.09,152.06,6.61747277]
[1751502445764,6.5722,152.09,152.06,0.04427277]
[1751502446567,6.5722,152.09,152.06,6.61767277]
[1751502447368,6.5719,152.1,152.07,6.5729]
[1751502447867,0.04841683,152.11,152.06,0.04427277]
[1751502448569,6.5722,152.09,152.06,6.61747277]
[1751502449671,6.5719,152.1,152.06,6.61747277]
[1751502449970,6.5719,152.1,152.07,6.5729]
[1751502450769,6.5719,152.1,152.06,6.61747277]
[1751502450969,6.5719,152.1,152.06,0.04427277]
[1751502451369,6.5719,152.1,152.06,6.61747277]
[1751502451870,0.04841683,152.11,152.06,0.04427277]
[1751502452065,0.04841683,152.11,152.07,6.11732298]
[1751502452770,6.572,152.1,152.07,6.5727]
[1751502453576,6.61981683,152.11,152.07,6.5727]
[1751502454865,6.61981683,152.11,152.08,6.5724]
[1751502455373,6.61981683,152.11,152.07,12.69012298]
[1751502456574,6.61981683,152.11,152.08,6.5725]
[1751502457375,6.61981683,152.11,152.07,12.69012298]
[1751502457576,0.04841683,152.11,152.07,6.11732298]
[1751502457778,0.04841683,152.11,152.09,6.11732298]
[1751502458270,0.04841683,152.11,152.09,12.68912298]
[1751502458471,0.04841683,152.11,152.09,6.11732298]
[1751502458667,0.04841683,152.11,152.07,8.17227209]
[1751502458872,0.04841683,152.11,152.09,6.13667573]
[1751502459276,0.04841683,152.11,152.09,12.70837573]
[1751502460176,0.04841683,152.11,152.1,6.5717]
[1751502460578,0.04841683,152.11,152.09,6.13667573]
[1751502460779,0.04841683,152.11,152.09,12.70857573]
[1751502461980,0.04841683,152.11,152.1,12.70837573]
[1751502463074,0.0027961,152.11,152.1,12.70837573]
[1751502463279,0.0027961,152.11,152.1,6.5717]
[1751502466479,0.0027961,152.11,152.1,12.7022207]
[1751502469077,0.0027961,152.11,152.1,6.5717]
[1751502476791,0.0027961,152.11,152.1,14.74397209]
[1751502477090,0.0027961,152.11,152.1,6.5717]
[1751502481093,0.0027961,152.11,152.1,14.7231721]
[1751502481790,0.0027961,152.11,152.1,6.5717]
[1751502482195,0.0027961,152.11,152.1,14.72204244]
[1751502482695,0.0027961,152.11,152.1,6.5717]
[1751502483490,9.61e-05,152.14,152.13,6.5704]
[1751502483691,9.61e-05,152.14,152.13,209.27548114]
[1751502483890,9.61e-05,152.14,152.13,201.1304]
[1751502484395,9.61e-05,152.14,152.13,203.3197]
[1751502486102,9.61e-05,152.14,152.13,211.45142019]
[1751502487099,9.61e-05,152.14,152.13,211.44906503]
[1751502487906,9.61e-05,152.14,152.13,203.3197]
[1751502488107,9.61e-05,152.14,152.13,211.44689164]
[1751502490608,6.5654,152.25,152.2,6.567]
[1751502490810,6.5654,152.25,152.21,194.48]
[1751502491608,13.2342,152.26,152.21,194.52227413]
[1751502491810,6.6693,152.26,152.21,194.52227413]
[1751502492311,6.5655,152.25,152.21,201.08897413]
[1751502492512,6.6693,152.26,152.21,194.52227413]
[1751502493010,6.5659,152.24,152.21,194.52227413]
[1751502494712,6.5659,152.24,152.21,6.60917413]
[1751502494913,6.5659,152.24,152.21,201.02917413]
[1751502495214,6.5661,152.23,152.21,194.46227413]
[1751502496615,6.5658,152.24,152.21,194.46227413]
[1751502497110,6.5653,152.25,152.21,194.46227413]
[1751502497311,6.6693,152.26,152.21,194.46227413]
[1751502498215,6.6693,152.26,152.23,6.5659]
[1751502500009,46.72,152.32,152.21,194.46227413]
[1751502500216,6.9659,152.31,152.21,194.46227413]
[1751502500515,6.9659,152.31,152.21,194.42]
[1751502500910,6.9659,152.31,152.24,0.04712264]
[1751502501114,6.9659,152.31,152.25,194.36]
[1751502501515,6.5635,152.29,152.25,200.9249]
[1751502501917,6.5635,152.29,152.25,194.36]
[1751502502210,6.5632,152.3,152.26,6.5647]
[1751502502610,6.9659,152.31,152.25,194.36]
[1751502503209,2.3697,152.31,152.25,194.36]
[1751502503520,2.3697,152.31,152.29,6.5632]
[1751502503818,2.3697,152.31,152.29,200.9032]
[1751502504219,2.3697,152.31,152.3,6.5631]
[1751502504522,6.5616,152.34,152.3,6.5631]
[1751502505519,6.5616,152.34,152.29,247.66861691]
[1751502506016,4.7276,152.35,152.29,241.10511691]
[1751502506319,4.7276,152.35,152.31,6.5623]
[1751502506517,4.7276,152.35,152.29,241.10511691]
[1751502506718,2.3315,152.37,152.34,6.5613]
[1751502506918,8.8918,152.37,152.29,241.10511691]
[1751502507118,2.3315,152.37,152.29,241.06]
[1751502507319,2.3315,152.37,152.34,6.5611]
[1751502507918,2.3315,152.37,152.33,194.28]
[1751502507919,2.3315,152.37,152.36,6.5605]
[1751502508320,2.3315,152.37,152.33,194.28]
[1751502508514,2.3315,152.37,152.35,6.5606]
[1751502510113,46.7,152.43,152.36,6.5604]
[1751502510417,6.5584,152.41,152.36,6.5604]
[1751502510724,6.5584,152.41,152.34,46.64]
[1751502510924,13.3071,152.42,152.34,46.64]